bitfinex/quotes_SOLUSD_20230105
["timestamp","ask_amount","ask_price","bid_price","bid_amount"]
[1672962595390,40.0,13.438,13.425,114.2385]
[1672962595586,55.85,13.437,13.425,114.2385]
[1672962596003,40.0,13.438,13.425,114.2385]
[1672962596529,55.85,13.439,13.425,114.2385]
[1672962598223,324.9181,13.44,13.426,95.9]
[1672962599685,40.0,13.438,13.425,114.2385]
[1672962600223,95.85,13.439,13.425,114.2385]
[1672962600537,40.0,13.438,13.425,114.2385]
[1672962600735,55.85,13.437,13.425,114.2385]
[1672962601372,40.0,13.437,13.425,114.2385]
[1672962601572,55.85,13.438,13.426,40.0]
[1672962601888,55.85,13.439,13.426,40.0]
[1672962605158,55.85,13.439,13.425,114.2385]
[1672962606089,55.85,13.439,13.426,40.0]
[1672962606628,324.9181,13.44,13.427,55.9]
[1672962606843,324.9181,13.44,13.428,40.0]
[1672962607659,205.9503,13.44,13.428,40.0]
[1672962608095,205.9503,13.44,13.43,40.0]
[1672962609023,205.9503,13.44,13.429,55.89]
[1672962611037,205.9503,13.44,13.428,40.0]
[1672962611458,205.9503,13.44,13.427,55.9]
[1672962614207,55.85,13.439,13.426,168.128]
[1672962614528,40.0,13.438,13.426,168.128]
[1672962614842,55.85,13.439,13.426,168.128]
[1672962616309,40.0,13.438,13.426,55.9]
[1672962616524,40.0,13.438,13.425,114.2385]
[1672962616712,55.85,13.437,13.425,114.2385]
[1672962617553,40.0,13.438,13.425,114.2385]
[1672962617764,55.85,13.437,13.425,114.2385]
[1672962618190,40.0,13.438,13.425,114.2385]
[1672962618714,95.85,13.439,13.425,114.2385]
[1672962618932,55.85,13.439,13.425,114.2385]
[1672962619463,18.78,13.44,13.426,192.09307507]
[1672962619781,18.78,13.44,13.428,40.0]
[1672962619979,18.78,13.44,13.43,40.0]
[1672962620191,18.78,13.44,13.431,75.88]
[1672962620400,18.78,13.44,13.432,40.0]
[1672962620610,18.78,13.44,13.433,75.87]
[1672962620833,18.78,13.44,13.434,40.0]
[1672962621046,18.78,13.44,13.436,40.0]
[1672962621242,109.4226,13.447,13.436,40.0]
[1672962621565,109.4226,13.447,13.437,22.41737149]
[1672962627749,109.4226,13.447,13.436,40.0]
[1672962629251,109.4226,13.447,13.435,55.86]
[1672962632821,109.4226,13.447,13.435,125.69121447]
[1672962633023,109.4226,13.447,13.436,40.0]
[1672962636603,109.4226,13.447,13.436,106.68615091]
[1672962637844,94.45,13.45,13.436,106.68615091]
[1672962638052,94.45,13.45,13.438,40.0]
[1672962638273,94.45,13.45,13.439,55.84]
[1672962638486,94.45,13.45,13.44,40.0]
[1672962639621,94.45,13.45,13.44,103.97357918]
[1672962639836,18.77,13.45,13.44,170.49586032]
[1672962640170,18.70087623,13.45,13.441,20.0]
[1672962640379,18.70087623,13.45,13.442,40.0]
[1672962640592,18.70087623,13.45,13.443,20.0]
[1672962641203,18.70087623,13.45,13.444,40.0]
[1672962641745,18.70087623,13.45,13.444,103.97357918]
[1672962645212,18.70087623,13.45,13.444,63.97357918]
[1672962645423,18.70087623,13.45,13.443,20.0]
[1672962652346,55.76,13.459,13.444,103.97357918]
[1672962652562,18.92,13.45,13.444,103.97357918]
[1672962653953,18.92,13.45,13.446,40.0]
[1672962654255,150.28,13.46,13.446,40.0]
[1672962654465,150.28,13.46,13.446,103.97357918]
[1672962656471,137.78,13.46,13.446,103.97357918]
[1672962661299,137.78,13.46,13.448,40.0]
[1672962662035,137.78,13.46,13.448,103.97357918]
[1672962663303,82.02,13.46,13.449,55.8]
[1672962663622,82.02,13.46,13.45,103.97357918]
[1672962664018,82.02,13.46,13.452,40.0]
[1672962664551,82.02,13.46,13.452,126.39095067]
[1672962666258,82.02,13.46,13.452,103.97357918]
[1672962667270,82.02,13.46,13.452,63.97357918]
[1672962668135,82.02,13.46,13.45,62.41737149]
[1672962668551,82.02,13.46,13.452,40.0]
[1672962668756,55.74,13.465,13.452,40.0]
[1672962669077,18.92,13.46,13.453,98.20737149]
[1672962669290,18.92,13.46,13.454,40.0]
[1672962669486,18.92,13.46,13.454,62.41737149]
[1672962673075,18.92,13.46,13.454,22.41737149]
[1672962673270,94.43,13.46,13.453,20.0]
[1672962675187,94.43,13.46,13.453,42.41737149]
[1672962675579,94.43,13.46,13.453,20.0]
[1672962679464,94.43,13.46,13.448,55.81]
[1672962679684,55.76,13.459,13.445,55.82]
[1672962679899,55.76,13.459,13.447,22.41737149]
[1672962680431,55.76,13.459,13.448,40.0]
[1672962680637,94.43,13.46,13.448,95.81]
[1672962680846,94.43,13.46,13.449,22.41737149]
[1672962681677,94.43,13.46,13.45,40.0]
[1672962681881,18.8,13.46,13.45,40.0]
[1672962682097,18.8,13.46,13.452,40.0]
[1672962682427,18.8,13.46,13.453,42.41737149]
[1672962682636,18.8,13.46,13.454,40.0]
[1672962682825,18.8,13.46,13.454,62.41737149]
[1672962683037,18.8,13.46,13.455,22.41737149]
[1672962683247,119.2448,13.468,13.456,40.0]
[1672962683565,119.2448,13.468,13.457,22.41737149]
[1672962689984,119.2448,13.468,13.453,75.79]
[1672962690190,18.92,13.46,13.453,20.0]
[1672962690615,18.92,13.46,13.455,40.0]
[1672962690947,55.73,13.467,13.455,40.0]
[1672962691154,55.73,13.467,13.456,22.41737149]
[1672962691366,55.73,13.467,13.455,40.0]
[1672962692301,55.73,13.467,13.455,62.41737149]
[1672962692950,78.14737149,13.467,13.454,40.0]
[1672962693153,94.64,13.46,13.446,40.0]
[1672962693471,55.76,13.459,13.444,40.0]
[1672962696187,55.76,13.459,13.446,22.41737149]
[1672962696402,94.64,13.46,13.447,40.0]
[1672962696615,150.4,13.46,13.447,146.20924466]
[1672962696821,150.4,13.46,13.448,22.41737149]
[1672962698627,150.4,13.46,13.447,90.39924466]
[1672962706080,18.78,13.46,13.448,84.12733466]
[1672962706301,18.78,13.46,13.45,40.0]
[1672962706519,18.78,13.46,13.451,20.0]
[1672962706721,18.78,13.46,13.451,42.41737149]
[1672962706923,18.78,13.46,13.452,62.41737149]
[1672962707131,18.78,13.46,13.453,20.0]
[1672962711471,94.67,13.46,13.45,40.0]
[1672962711658,94.67,13.46,13.448,55.81]
[1672962711976,94.67,13.46,13.447,113.982]
[1672962712190,94.67,13.46,13.449,22.41737149]
[1672962712597,150.43,13.46,13.449,22.41737149]
[1672962716918,373.73,13.46,13.443,50.39924466]
[1672962717242,373.73,13.46,13.434,109.079]
[1672962717243,94.54,13.45,13.434,109.079]
[1672962717546,18.92,13.44,13.434,109.079]
[1672962718597,18.92,13.44,13.431,22.41737149]
[1672962718790,18.92,13.44,13.432,20.0]
[1672962719437,18.92,13.44,13.43,20.0]
[1672962721118,94.43,13.44,13.43,20.0]
[1672962723331,94.43,13.44,13.432,40.0]
[1672962723524,18.8,13.44,13.433,20.0]
[1672962723734,18.8,13.44,13.434,40.0]
[1672962724056,18.8,13.44,13.434,61.58458007]
[1672962724273,18.8,13.44,13.435,21.58458007]
[1672962724491,117.7552,13.447,13.435,21.58458007]
[1672962724804,55.82,13.446,13.435,134.66748007]
[1672962725207,55.82,13.446,13.435,113.0829]
[1672962725856,117.7552,13.447,13.436,40.0]
[1672962735628,117.7552,13.447,13.435,113.0829]
[1672962736987,75.82,13.446,13.433,41.42]
[1672962737200,94.59,13.44,13.428,117.7569]
[1672962737410,55.85,13.439,13.428,117.7569]
[1672962739634,40.0,13.438,13.428,117.7569]
[1672962740364,40.0,13.438,13.421,41.47]
[1672962740584,18.92,13.43,13.422,157.74308007]
[1672962740791,18.92,13.43,13.423,40.0]
[1672962740999,18.92,13.43,13.424,20.0]
[1672962741199,18.92,13.43,13.425,41.46]
[1672962741411,55.85,13.439,13.426,40.0]
[1672962743299,55.85,13.439,13.425,41.46]
[1672962750779,40.0,13.438,13.425,41.46]
[1672962750969,55.85,13.437,13.425,41.46]
[1672962751178,40.0,13.436,13.425,41.46]
[1672962751625,40.0,13.436,13.424,20.0]
[1672962751626,55.86,13.435,13.424,20.0]
[1672962751835,94.59,13.43,13.423,20.0]
[1672962757492,94.59,13.43,13.423,61.47]
[1672962757694,94.59,13.43,13.424,40.0]
[1672962758648,18.97,13.43,13.424,40.0]
[1672962761923,18.97,13.43,13.423,61.47]
[1672962762147,94.59,13.43,13.423,61.47]
[1672962767404,94.59,13.43,13.424,40.0]
[1672962767845,94.59,13.43,13.425,41.47]
[1672962768140,209.2706,13.44,13.426,40.0]
[1672962768962,55.85,13.439,13.426,40.0]
[1672962772234,94.45,13.44,13.426,62.19190262]
[1672962772444,94.45,13.44,13.427,20.0]
[1672962772656,94.45,13.44,13.428,40.0]
[1672962772866,94.45,13.44,13.429,20.0]
[1672962773497,94.45,13.44,13.43,40.0]
[1672962773817,94.45,13.44,13.431,20.0]
[1672962781989,56.7,13.44,13.431,20.0]
[1672962782206,18.92,13.44,13.432,40.0]
[1672962782414,18.92,13.44,13.433,20.0]
[1672962782631,18.92,13.44,13.434,40.0]
[1672962782856,18.92,13.44,13.434,62.19190262]
[1672962783702,18.92,13.44,13.435,22.19190262]
[1672962784021,117.7552,13.447,13.434,40.0]
[1672962784328,18.92,13.44,13.434,40.0]
[1672962784721,18.92,13.44,13.435,22.19190262]
[1672962784959,117.7552,13.447,13.435,22.19190262]
[1672962787274,117.7552,13.447,13.434,40.0]
[1672962787477,94.43,13.44,13.434,40.0]
[1672962787885,94.43,13.44,13.433,135.513]
[1672962797152,126.05,13.44,13.433,135.513]
[1672962797358,126.1,13.44,13.433,135.513]
[1672962798205,126.1,13.44,13.433,20.0]
[1672962798409,126.1,13.44,13.43,20.0]
[1672962799545,40.0,13.438,13.425,41.47]
[1672962799757,55.85,13.437,13.425,41.47]
[1672962800402,55.85,13.438,13.425,41.47]
[1672962800923,55.85,13.439,13.425,41.47]
[1672962803653,40.0,13.438,13.425,41.47]
[1672962803874,40.0,13.436,13.425,41.47]
[1672962804204,40.0,13.434,13.425,41.47]
[1672962804381,55.87,13.433,13.425,41.47]
[1672962804802,40.0,13.434,13.425,41.47]
[1672962805018,55.87,13.433,13.425,41.47]
[1672962805858,113.3485,13.433,13.425,41.47]
[1672962808406,113.3485,13.433,13.425,28.97]
[1672962808591,40.0,13.432,13.425,28.97]
[1672962808903,113.3485,13.433,13.425,28.97]
[1672962813045,113.3485,13.433,13.421,158.4584]
[1672962813354,125.9,13.43,13.423,40.0]
[1672962813538,125.9,13.43,13.424,20.0]
[1672962816076,21.415,13.43,13.425,41.7]
[1672962816280,245.3044,13.44,13.426,40.0]
[1672962816494,245.3044,13.44,13.427,61.69]
[1672962816917,245.3044,13.44,13.427,141.77308094]
[1672962817123,126.05,13.44,13.428,120.08308094]
[1672962817332,126.05,13.44,13.429,75.89]
[1672962817541,126.05,13.44,13.43,40.0]
[1672962817765,126.05,13.44,13.431,75.88]
[1672962818164,126.05,13.44,13.432,40.0]
[1672962818375,126.05,13.44,13.433,75.87]
[1672962818584,126.05,13.44,13.434,40.0]
[1672962821134,25.21,13.44,13.436,40.0]
[1672962821328,117.7552,13.447,13.436,40.0]
[1672962823231,117.7552,13.447,13.436,62.19190262]
[1672962823634,117.7552,13.447,13.437,55.85]
[1672962823845,117.7552,13.447,13.436,62.19190262]
[1672962825448,125.95,13.45,13.436,62.19190262]
[1672962825650,125.95,13.45,13.437,75.85]
[1672962826183,125.95,13.45,13.438,62.26209786]
[1672962826377,125.95,13.45,13.44,40.0]
[1672962826587,125.95,13.45,13.441,75.84]
[1672962827010,125.95,13.45,13.442,40.0]
[1672962827429,125.95,13.45,13.443,20.0]
[1672962828583,25.29,13.45,13.444,22.41737149]
[1672962828795,25.29,13.45,13.444,78.24737149]
[1672962829004,25.29,13.45,13.445,40.0]
[1672962829229,109.9286,13.459,13.446,55.82]
[1672962829548,109.9286,13.459,13.447,40.0]
[1672962833010,125.94,13.46,13.447,40.0]
[1672962833329,125.94,13.46,13.447,62.41737149]
[1672962833754,125.94,13.46,13.447,120.30854981]
[1672962834476,125.94,13.46,13.448,20.0]
[1672962834992,125.94,13.46,13.448,42.41737149]
[1672962835205,125.94,13.46,13.449,40.0]
[1672962835457,125.94,13.46,13.45,20.0]
[1672962837642,433.89,13.46,13.446,109.4181]
[1672962837958,40.0,13.459,13.446,109.4181]
[1672962838269,55.77,13.458,13.446,109.4181]
[1672962838798,40.0,13.458,13.446,109.4181]
[1672962839108,55.77,13.457,13.446,109.4181]
[1672962839510,40.0,13.458,13.446,109.4181]
[1672962839716,55.77,13.457,13.446,109.4181]
[1672962840474,126.12,13.46,13.447,40.0]
[1672962840877,181.88,13.46,13.447,40.0]
[1672962841097,126.12,13.46,13.447,95.8]
[1672962842456,126.12,13.46,13.448,20.0]
[1672962845518,126.12,13.46,13.448,75.81]
[1672962845726,126.12,13.46,13.449,40.0]
[1672962845940,126.12,13.46,13.45,20.0]
[1672962850679,126.12,13.46,13.451,40.0]
[1672962850986,126.12,13.46,13.452,20.0]
[1672962855284,126.12,13.46,13.451,20.0]
[1672962855722,126.12,13.46,13.45,20.0]
[1672962858137,25.28,13.46,13.45,20.0]
[1672962859188,25.28,13.46,13.45,75.8]
[1672962859595,25.28,13.46,13.451,40.0]
[1672962859818,126.12,13.46,13.452,20.0]
[1672962863061,126.12,13.46,13.447,20.0]
[1672962863271,55.76,13.459,13.442,55.83]
[1672962863481,126.07,13.45,13.444,20.0]
[1672962863689,126.07,13.45,13.44,40.0]
[1672962865473,126.07,13.45,13.441,20.0]
[1672962866215,126.07,13.45,13.44,20.0]
[1672962867176,126.07,13.45,13.44,60.0]
[1672962868536,126.07,13.45,13.44,20.0]
[1672962872444,126.07,13.45,13.44,60.0]
[1672962873281,126.07,13.45,13.44,20.0]
[1672962876312,126.07,13.45,13.44,60.0]
[1672962878625,126.07,13.45,13.44,20.0]
[1672962883678,55.8,13.449,13.434,48.75759915]
[1672962883876,55.8,13.449,13.431,119.8615]
[1672962883877,25.21,13.44,13.431,119.8615]
[1672962884082,25.21,13.44,13.432,20.0]
[1672962884321,125.9,13.44,13.432,20.0]
[1672962885043,125.9,13.44,13.431,119.8615]
[1672962885260,40.0,13.439,13.423,40.0]
[1672962885479,25.21,13.43,13.424,167.605]
[1672962885684,25.21,13.43,13.425,40.0]
[1672962885899,125.98,13.44,13.425,40.0]
[1672962886531,125.98,13.44,13.426,20.0]
[1672962886742,55.85,13.439,13.426,20.0]
[1672962886935,125.98,13.44,13.426,20.0]
[1672962887146,125.98,13.44,13.426,118.2083271]
[1672962887357,125.98,13.44,13.427,95.9]
[1672962887566,125.98,13.44,13.428,20.0]
[1672962887790,125.98,13.44,13.43,40.0]
[1672962887986,125.98,13.44,13.431,20.0]
[1672962888327,125.98,13.44,13.431,125.33072795]
[1672962888517,125.98,13.44,13.432,40.0]
[1672962888729,125.98,13.44,13.433,20.0]
[1672962892523,125.98,13.44,13.432,20.0]
[1672962892928,125.98,13.44,13.428,20.0]
[1672962895692,125.98,13.44,13.428,40.0]
[1672962895900,125.98,13.44,13.429,20.0]
[1672962898634,125.98,13.44,13.427,60.0]
[1672962898832,40.0,13.438,13.427,20.0]
[1672962899044,55.85,13.439,13.427,20.0]
[1672962900319,55.85,13.439,13.423,104.66759915]
[1672962900639,25.21,13.43,13.424,60.0]
[1672962901453,25.21,13.43,13.424,40.0]
[1672962905160,25.21,13.43,13.423,40.0]
[1672962905465,125.83,13.43,13.424,20.0]
[1672962909985,125.83,13.43,13.422,20.0]
[1672962912844,125.83,13.43,13.421,20.0]
[1672962913680,125.83,13.43,13.418,20.0]
[1672962917043,125.83,13.43,13.419,95.93]
[1672962917231,24.99,13.43,13.421,40.0]
[1672962917437,24.99,13.43,13.422,20.0]
[1672962917654,24.99,13.43,13.423,55.91]
[1672962917973,24.99,13.43,13.425,40.0]
[1672962918184,116.7331,13.433,13.425,40.0]
[1672962920714,116.7331,13.433,13.424,60.0]
[1672962920924,25.21,13.43,13.424,60.0]
[1672962921344,25.21,13.43,13.424,20.0]
[1672962921664,25.21,13.43,13.423,20.0]
[1672962922378,50.53,13.43,13.421,20.0]
[1672962922595,126.38,13.43,13.421,20.0]
[1672962923137,126.38,13.43,13.42,20.0]
[1672962923351,126.38,13.43,13.419,20.0]
[1672962924163,55.89,13.429,13.405,59.8532]
[1672962924390,55.89,13.429,13.415,40.0]
[1672962924391,125.9,13.42,13.415,40.0]
[1672962926501,125.9,13.42,13.414,117.735]
[1672962926690,125.9,13.42,13.409,40.0]
[1672962926900,125.9,13.42,13.41,20.0]
[1672962927537,125.9,13.42,13.411,40.0]
[1672962927750,25.14,13.42,13.412,20.0]
[1672962928067,25.14,13.42,13.412,69.45072795]
[1672962928392,25.14,13.42,13.413,40.0]
[1672962928603,25.14,13.42,13.414,20.0]
[1672962933217,25.14,13.42,13.412,20.0]
[1672962937544,25.14,13.42,13.414,40.0]
[1672962937949,25.14,13.42,13.415,22.41737149]
[1672962938998,55.89,13.429,13.416,20.0]
[1672962939308,125.89,13.43,13.417,62.41737149]
[1672962939521,125.89,13.43,13.418,20.0]
[1672962939739,125.89,13.43,13.418,42.41737149]
[1672962939952,125.89,13.43,13.419,62.41737149]
[1672962940140,125.89,13.43,13.42,20.0]
[1672962941217,125.89,13.43,13.422,40.0]
[1672962941438,125.89,13.43,13.423,20.0]
[1672962941619,125.89,13.43,13.423,42.41737149]
[1672962945522,125.89,13.43,13.423,20.0]
[1672962945840,125.89,13.43,13.42,20.0]
[1672962947309,125.89,13.43,13.422,40.0]
[1672962947545,125.89,13.43,13.423,20.0]
[1672962948153,125.89,13.43,13.42,20.0]
[1672962950570,125.89,13.43,13.418,20.0]
[1672962950979,55.89,13.429,13.418,20.0]
[1672962951189,125.89,13.43,13.418,20.0]
[1672962951403,223.3,13.428,13.414,110.2861]
[1672962951606,25.21,13.42,13.416,22.41737149]
[1672962951920,55.9,13.427,13.416,22.41737149]
[1672962952131,118.8871,13.426,13.416,22.41737149]
[1672962953711,55.89,13.429,13.416,22.41737149]
[1672962953924,125.89,13.43,13.418,40.0]
[1672962954253,125.89,13.43,13.419,42.41737149]
[1672962954657,125.89,13.43,13.42,22.41737149]
[1672962954862,125.89,13.43,13.421,20.0]
[1672962955506,125.89,13.43,13.419,20.0]
[1672962959413,125.89,13.43,13.421,40.0]
[1672962959721,125.89,13.43,13.422,20.0]
[1672962961501,125.89,13.43,13.421,20.0]
[1672962963506,349.19,13.43,13.42,20.0]
[1672962963698,125.89,13.43,13.418,20.0]
[1672962963909,55.89,13.429,13.418,20.0]
[1672962964748,125.89,13.43,13.418,20.0]
[1672962966223,125.89,13.43,13.418,42.41737149]
[1672962966433,125.89,13.43,13.419,40.0]
[1672962966644,125.89,13.43,13.42,20.0]
[1672962971274,125.89,13.43,13.417,40.0]
[1672962971275,55.89,13.429,13.417,40.0]
[1672962971471,279.19,13.429,13.413,25.29]
[1672962971677,25.21,13.42,13.414,20.0]
[1672962972523,25.21,13.42,13.412,61.4756]
[1672962972750,25.21,13.42,13.411,25.29]
[1672962973813,25.21,13.42,13.412,20.0]
[1672962974112,25.21,13.42,13.412,60.0]
[1672962976029,25.21,13.42,13.412,20.0]
[1672962979497,25.21,13.42,13.413,40.0]
[1672962979686,25.21,13.42,13.414,20.0]
[1672962984460,25.21,13.42,13.412,20.0]
[1672962984863,126.38,13.42,13.412,20.0]
[1672962985279,55.93,13.419,13.411,25.29]
[1672962985598,174.5962,13.419,13.411,25.29]
[1672962985910,40.0,13.418,13.411,25.29]
[1672962986128,55.94,13.417,13.411,25.29]
[1672962987390,55.84225969,13.417,13.411,25.29]
[1672962989790,55.93,13.418,13.411,25.29]
[1672962989999,40.0,13.417,13.411,25.29]
[1672962990221,95.93,13.418,13.411,25.29]
[1672962990542,55.93,13.418,13.411,25.29]
[1672962992836,174.5962,13.419,13.411,25.29]
[1672962998736,40.0,13.418,13.411,25.29]
[1672962998943,40.0,13.416,13.411,25.29]
[1672962999572,55.94,13.417,13.411,25.29]
[1672963000528,40.0,13.417,13.411,25.29]
[1672963000719,55.93,13.418,13.411,25.29]
[1672963002308,174.5962,13.419,13.411,25.29]
[1672963003775,118.6662,13.419,13.411,25.29]
[1672963004848,174.5962,13.419,13.411,25.29]
[1672963007776,126.38,13.42,13.411,25.29]
[1672963007777,126.38,13.42,13.412,20.0]
[1672963007986,25.32,13.42,13.412,41.73850009]
[1672963008184,25.32,13.42,13.413,40.0]
[1672963008395,25.32,13.42,13.414,20.0]
[1672963008621,25.32,13.42,13.414,41.73850009]
[1672963008830,25.32,13.42,13.415,21.73850009]
[1672963010181,55.89,13.429,13.415,71.98400376]
[1672963010398,125.89,13.43,13.415,71.98400376]
[1672963010611,125.89,13.43,13.416,21.73850009]
[1672963010828,125.89,13.43,13.417,40.0]
[1672963011124,125.89,13.43,13.418,21.73850009]
[1672963011984,125.89,13.43,13.418,71.98400376]
[1672963012311,125.89,13.43,13.419,21.73850009]
[1672963012939,125.89,13.43,13.42,40.0]
[1672963013149,125.89,13.43,13.42,60.0]
[1672963013346,125.89,13.43,13.422,40.0]
[1672963013551,125.89,13.43,13.423,20.0]
[1672963013762,125.89,13.43,13.423,41.73850009]
[1672963013976,125.89,13.43,13.423,20.0]
[1672963014182,125.89,13.43,13.421,20.0]
[1672963014393,125.89,13.43,13.419,20.0]
[1672963022502,125.89,13.43,13.42,21.73850009]
[1672963022906,95.89,13.429,13.414,113.8168]
[1672963023249,25.21,13.42,13.414,113.8168]
[1672963028699,55.89,13.428,13.415,40.0]
[1672963028911,125.89,13.43,13.416,20.0]
[1672963029339,125.89,13.43,13.416,70.24550367]
[1672963029549,126.25,13.43,13.416,70.24550367]
[1672963029744,125.93,13.43,13.417,40.0]
[1672963029956,125.93,13.43,13.418,20.0]
[1672963030394,125.93,13.43,13.418,70.24550367]
[1672963030589,125.93,13.43,13.419,40.0]
[1672963030800,125.93,13.43,13.42,20.0]
[1672963032578,125.93,13.43,13.418,20.0]
[1672963032791,25.02,13.43,13.418,41.73850009]
[1672963033022,25.02,13.43,13.419,47.81850009]
[1672963033430,25.02,13.43,13.42,41.73850009]
[1672963033752,25.02,13.43,13.422,40.0]
[1672963033965,25.02,13.43,13.423,46.08]
[1672963034382,25.02,13.43,13.424,90.24550367]
[1672963034796,25.02,13.43,13.425,50.24550367]
[1672963035003,166.7842,13.439,13.425,50.24550367]
[1672963035423,40.0,13.438,13.424,40.0]
[1672963035632,25.25,13.43,13.424,40.0]
[1672963035857,25.25,13.43,13.423,46.08]
[1672963036594,25.23,13.43,13.423,46.08]
[1672963039006,25.23,13.43,13.424,40.0]
[1672963039439,25.23,13.43,13.426,40.0]
[1672963039640,166.7842,13.439,13.426,40.0]
[1672963042373,166.7842,13.439,13.424,95.91]
[1672963042590,25.23,13.43,13.424,55.91]
[1672963047211,18.93,13.43,13.424,55.91]
[1672963048162,18.93,13.43,13.425,61.73850009]
[1672963048474,166.7842,13.439,13.425,61.73850009]
[1672963050471,40.0,13.438,13.425,21.73850009]
[1672963051093,55.85,13.439,13.425,21.73850009]
[1672963051313,207.4764,13.44,13.426,75.9]
[1672963051509,207.4764,13.44,13.427,40.0]
[1672963051715,207.4764,13.44,13.428,55.89]
[1672963051927,207.4764,13.44,13.429,60.0]
[1672963052251,207.4764,13.44,13.431,40.0]
[1672963052468,207.4764,13.44,13.432,20.0]
[1672963054258,40.0,13.439,13.432,20.0]
[1672963054448,40.0,13.439,13.429,20.0]
[1672963055101,207.4764,13.44,13.429,20.0]
[1672963059514,207.4764,13.44,13.43,22.34693081]
[1672963059822,207.4764,13.44,13.431,20.0]
[1672963060249,207.4764,13.44,13.432,22.34693081]
[1672963060556,207.4764,13.44,13.433,20.0]
[1672963068560,207.4764,13.44,13.43,20.0]
[1672963073281,207.4764,13.44,13.429,20.0]
[1672963073485,207.4764,13.44,13.429,60.0]
[1672963073816,207.4764,13.44,13.429,20.0]
[1672963074216,207.4764,13.44,13.429,60.0]
[1672963074438,207.4764,13.44,13.429,82.34693081]
[1672963075269,207.4764,13.44,13.429,138.23693081]
[1672963075491,207.4764,13.44,13.429,82.34693081]
[1672963077692,207.4764,13.44,13.429,42.34693081]
[1672963078533,207.4764,13.44,13.429,20.0]
[1672963079731,207.4764,13.44,13.429,60.0]
[1672963083610,207.4764,13.44,13.429,20.0]
[1672963083803,207.4764,13.44,13.429,60.0]
[1672963084552,207.4764,13.44,13.429,20.0]
[1672963084977,207.4764,13.44,13.429,60.0]
[1672963085597,207.4764,13.44,13.429,115.89]
[1672963086230,131.5564,13.44,13.43,22.34693081]
[1672963086432,131.5564,13.44,13.431,60.0]
[1672963086857,131.5564,13.44,13.431,82.34693081]
[1672963087088,131.5564,13.44,13.431,60.0]